[Event "Titled Tuesday Blitz November 07 Late 2023"]
[White "Dwilewicz, Katarzyna"]
[Black "FrenchHarvey"]
[WhiteFideId "1148486"]
[WhiteElo "2371"]
[BlackElo "2714"]
[Result "0-1"]
[Round "1"]
[TimeControl "180+1"]
[Date "2023.11.07"]
[WhiteClock "0:00:05"]
[BlackClock "0:00:42"]
[Board "82"]

1. e4 {[%clk 0:03:00]}  c5 {[%clk 0:02:59]} 2. c3 {[%clk 0:02:57]}  d6 {[%clk 0:02:58]} 3. d4 {[%clk 0:02:55]}  Nf6 {[%clk 0:02:57]} 4. Bd3 {[%clk 0:02:50]}  e5 {[%clk 0:02:51]} 5. Ne2 {[%clk 0:02:36]}  Nc6 {[%clk 0:02:49]} 6. d5 {[%clk 0:02:34]}  Ne7 {[%clk 0:02:47]} 7. O-O {[%clk 0:02:27]}  Ng6 {[%clk 0:02:43]} 8. g3 {[%clk 0:02:17]}  Bh3 {[%clk 0:02:38]} 9. Bb5+ {[%clk 0:02:15]}  Nd7 {[%clk 0:02:37]} 10. Re1 {[%clk 0:02:14]}  h5 {[%clk 0:02:31]} 11. f4 {[%clk 0:02:11]}  h4 {[%clk 0:02:26]} 12. f5 {[%clk 0:02:09]}  hxg3 {[%clk 0:02:26]} 13. fxg6 {[%clk 0:01:50]}  gxh2+ {[%clk 0:02:25]} 14. Kh1 {[%clk 0:01:50]}  Bg4 {[%clk 0:02:16]} 15. gxf7+ {[%clk 0:01:47]}  Kxf7 {[%clk 0:02:15]} 16. Rf1+ {[%clk 0:01:43]}  Nf6 {[%clk 0:02:15]} 17. Qe1 {[%clk 0:01:39]}  Kg8 {[%clk 0:02:04]} 18. Bd3 {[%clk 0:01:34]}  c4 {[%clk 0:02:01]} 19. Bc2 {[%clk 0:01:34]}  Nh5 {[%clk 0:01:58]} 20. Bd1 {[%clk 0:01:12]}  Be7 {[%clk 0:01:48]} 21. Be3 {[%clk 0:01:08]}  Bg5 {[%clk 0:01:21]} 22. Bf2 {[%clk 0:00:57]}  Bf3+ {[%clk 0:01:20]} 23. Kxh2 {[%clk 0:00:54]}  Qd7 {[%clk 0:01:03]} 24. Bh4 {[%clk 0:00:40]}  Nf4 {[%clk 0:00:46]} 25. Rxf3 {[%clk 0:00:33]}  Bxh4 {[%clk 0:00:44]} 26. Qf1 {[%clk 0:00:10]}  Bf2+ {[%clk 0:00:42]} 27. Rh3 {[%clk 0:00:05]}  Rxh3+ {[%clk 0:00:42]} 0-1


[Site "https://www.chess.com"]

[Event "Titled Tuesday Blitz November 07 Late 2023"]
[White "Danielyan, Vahe"]
[Black "PapaieDudu"]
[WhiteFideId "13304828"]
[WhiteElo "2713"]
[BlackElo "2367"]
[Result "0-1"]
[Round "1"]
[TimeControl "180+1"]
[Date "2023.11.07"]
[WhiteClock "0:02:27"]
[BlackClock "0:01:27"]
[Board "83"]

1. e4 {[%clk 0:03:00]}  c5 {[%clk 0:02:54]} 2. Nc3 {[%clk 0:02:59]}  e6 {[%clk 0:02:47]} 3. Nge2 {[%clk 0:02:57]}  a6 {[%clk 0:02:46]} 4. g3 {[%clk 0:02:57]}  d5 {[%clk 0:02:46]} 5. exd5 {[%clk 0:02:56]}  exd5 {[%clk 0:02:47]} 6. d4 {[%clk 0:02:56]}  Nf6 {[%clk 0:02:47]} 7. Bg2 {[%clk 0:02:56]}  Nc6 {[%clk 0:02:47]} 8. O-O {[%clk 0:02:57]}  Bg4 {[%clk 0:02:41]} 9. dxc5 {[%clk 0:02:57]}  Bxc5 {[%clk 0:02:36]} 10. h3 {[%clk 0:02:57]}  Be6 {[%clk 0:02:29]} 11. Nf4 {[%clk 0:02:55]}  O-O {[%clk 0:02:25]} 12. Ncxd5 {[%clk 0:02:55]}  Nxd5 {[%clk 0:02:25]} 13. Nxd5 {[%clk 0:02:56]}  Rc8 {[%clk 0:02:17]} 14. Nf4 {[%clk 0:02:55]}  Bc4 {[%clk 0:02:14]} 15. Nd3 {[%clk 0:02:48]}  Bd4 {[%clk 0:02:02]} 16. Re1 {[%clk 0:02:47]}  Qf6 {[%clk 0:01:59]} 17. Qf3 {[%clk 0:02:47]}  Bxd3 {[%clk 0:01:45]} 18. cxd3 {[%clk 0:02:45]}  Bxb2 {[%clk 0:01:36]} 19. Qxf6 {[%clk 0:02:43]}  Bxf6 {[%clk 0:01:37]} 20. Rb1 {[%clk 0:02:44]}  Nd4 {[%clk 0:01:37]} 21. Bf4 {[%clk 0:02:41]}  b5 {[%clk 0:01:33]} 22. Be4 {[%clk 0:02:40]}  Rc2 {[%clk 0:01:27]} 23. Rec1 {[%clk 0:02:27]}  Ne2+ {[%clk 0:01:27]} 0-1


[Site "https://www.chess.com"]

[Event "Titled Tuesday Blitz November 07 Late 2023"]
[White "Hoffmann, Asa"]
[Black "Hilary46"]
[WhiteFideId "2001470"]
[WhiteElo "2364"]
[BlackElo "2709"]
[Result "1/2-1/2"]
[Round "1"]
[TimeControl "180+1"]
[Date "2023.11.07"]
[WhiteClock "0:00:45"]
[BlackClock "0:00:22"]
[Board "84"]

1. d4 {[%clk 0:02:52]}  d5 {[%clk 0:02:55]} 2. Bg5 {[%clk 0:02:50]}  Nd7 {[%clk 0:02:49]} 3. c4 {[%clk 0:02:50]}  dxc4 {[%clk 0:02:40]} 4. Nc3 {[%clk 0:02:48]}  Nb6 {[%clk 0:02:35]} 5. e4 {[%clk 0:02:47]}  Nf6 {[%clk 0:02:31]} 6. Nf3 {[%clk 0:02:43]}  Bg4 {[%clk 0:02:30]} 7. Bxc4 {[%clk 0:02:37]}  Nxc4 {[%clk 0:02:27]} 8. Qa4+ {[%clk 0:02:37]}  Qd7 {[%clk 0:02:25]} 9. Qxc4 {[%clk 0:02:36]}  Bxf3 {[%clk 0:02:26]} 10. gxf3 {[%clk 0:02:35]}  e6 {[%clk 0:02:20]} 11. Bxf6 {[%clk 0:02:28]}  gxf6 {[%clk 0:02:21]} 12. O-O-O {[%clk 0:02:28]}  O-O-O {[%clk 0:02:18]} 13. Kb1 {[%clk 0:02:27]}  Rg8 {[%clk 0:02:06]} 14. d5 {[%clk 0:02:21]}  Bd6 {[%clk 0:01:55]} 15. Nb5 {[%clk 0:02:16]}  Kb8 {[%clk 0:01:54]} 16. Rc1 {[%clk 0:02:11]}  e5 {[%clk 0:01:48]} 17. Rc2 {[%clk 0:02:06]}  a6 {[%clk 0:01:46]} 18. Nxd6 {[%clk 0:02:05]}  cxd6 {[%clk 0:01:44]} 19. Rhc1 {[%clk 0:02:01]}  Rc8 {[%clk 0:01:43]} 20. Qb4 {[%clk 0:01:53]}  Rxc2 {[%clk 0:01:43]} 21. Rxc2 {[%clk 0:01:52]}  Rc8 {[%clk 0:01:25]} 22. Rxc8+ {[%clk 0:01:49]}  Kxc8 {[%clk 0:01:24]} 23. Qd2 {[%clk 0:01:34]}  Qh3 {[%clk 0:01:19]} 24. Qc2+ {[%clk 0:01:16]}  Kb8 {[%clk 0:01:07]} 25. Qe2 {[%clk 0:01:04]}  Qxh2 {[%clk 0:01:04]} 26. a3 {[%clk 0:01:03]}  h5 {[%clk 0:01:03]} 27. Qe3 {[%clk 0:01:01]}  Kc7 {[%clk 0:00:37]} 28. Qh6 {[%clk 0:00:50]}  h4 {[%clk 0:00:32]} 29. Qxf6 {[%clk 0:00:49]}  h3 {[%clk 0:00:29]} 30. Qe7+ {[%clk 0:00:49]}  Kc8 {[%clk 0:00:28]} 31. Qf8+ {[%clk 0:00:46]}  Kc7 {[%clk 0:00:27]} 32. Qe7+ {[%clk 0:00:46]}  Kc8 {[%clk 0:00:23]} 33. Qf8+ {[%clk 0:00:45]}  Kc7 {[%clk 0:00:22]} 34. Qe7+ {[%clk 0:00:45]} 1/2-1/2


[Site "https://www.chess.com"]

[Event "Titled Tuesday Blitz November 07 Late 2023"]
[White "Barrientos, Sergio E"]
[Black "Fernandez Siles, Luis"]
[WhiteFideId "4401824"]
[BlackFideId "2209420"]
[WhiteElo "2686"]
[BlackElo "2354"]
[Result "1-0"]
[Round "1"]
[TimeControl "180+1"]
[Date "2023.11.07"]
[WhiteClock "0:00:50"]
[BlackClock "0:00:30"]
[Board "91"]

1. d4 {[%clk 0:02:51]}  Nf6 {[%clk 0:02:59]} 2. c4 {[%clk 0:02:50]}  g6 {[%clk 0:02:58]} 3. Nc3 {[%clk 0:02:51]}  d5 {[%clk 0:02:58]} 4. Nf3 {[%clk 0:02:49]}  Bg7 {[%clk 0:02:58]} 5. e3 {[%clk 0:02:48]}  O-O {[%clk 0:02:57]} 6. Be2 {[%clk 0:02:49]}  c5 {[%clk 0:02:57]} 7. O-O {[%clk 0:02:48]}  cxd4 {[%clk 0:02:57]} 8. exd4 {[%clk 0:02:49]}  Nc6 {[%clk 0:02:56]} 9. h3 {[%clk 0:02:48]}  b6 {[%clk 0:02:54]} 10. Re1 {[%clk 0:02:47]}  Bb7 {[%clk 0:02:53]} 11. cxd5 {[%clk 0:02:43]}  Nxd5 {[%clk 0:02:51]} 12. Bg5 {[%clk 0:02:43]}  Rc8 {[%clk 0:02:33]} 13. Rc1 {[%clk 0:02:32]}  h6 {[%clk 0:02:28]} 14. Bd2 {[%clk 0:02:21]}  e6 {[%clk 0:02:16]} 15. Qa4 {[%clk 0:02:13]}  Nxc3 {[%clk 0:01:47]} 16. bxc3 {[%clk 0:02:11]}  e5 {[%clk 0:01:39]} 17. Be3 {[%clk 0:02:01]}  exd4 {[%clk 0:01:30]} 18. cxd4 {[%clk 0:02:00]}  Na5 {[%clk 0:01:28]} 19. Ne5 {[%clk 0:01:55]}  Rxc1 {[%clk 0:01:20]} 20. Rxc1 {[%clk 0:01:54]}  Qh4 {[%clk 0:01:17]} 21. Qb5 {[%clk 0:01:24]}  f5 {[%clk 0:00:58]} 22. Nxg6 {[%clk 0:01:18]}  Qf6 {[%clk 0:00:48]} 23. Nxf8 {[%clk 0:01:14]}  Bxf8 {[%clk 0:00:49]} 24. Qd7 {[%clk 0:01:06]}  Bd6 {[%clk 0:00:41]} 25. Bf3 {[%clk 0:00:51]}  Bxf3 {[%clk 0:00:40]} 26. gxf3 {[%clk 0:00:52]}  f4 {[%clk 0:00:40]} 27. Rc8+ {[%clk 0:00:51]}  Bf8 {[%clk 0:00:39]} 28. Qg4+ {[%clk 0:00:51]}  Kh8 {[%clk 0:00:30]} 29. Qxf4 {[%clk 0:00:50]} 1-0


[Site "https://www.chess.com"]

[Event "Titled Tuesday Blitz November 07 Late 2023"]
[White "Zeltsan, Joseph"]
[Black "Jarocka, Liwia"]
[WhiteFideId "30932980"]
[BlackFideId "21807558"]
[WhiteElo "2683"]
[BlackElo "2349"]
[Result "1-0"]
[Round "1"]
[TimeControl "180+1"]
[Date "2023.11.07"]
[WhiteClock "0:00:23"]
[BlackClock "0:00:11"]
[Board "93"]

1. e4 {[%clk 0:03:00]}  c5 {[%clk 0:02:59]} 2. Nf3 {[%clk 0:02:59]}  e6 {[%clk 0:02:57]} 3. d4 {[%clk 0:02:59]}  cxd4 {[%clk 0:02:58]} 4. Nxd4 {[%clk 0:03:00]}  Nf6 {[%clk 0:02:59]} 5. Nc3 {[%clk 0:03:00]}  a6 {[%clk 0:02:58]} 6. e5 {[%clk 0:02:58]}  Ng8 {[%clk 0:02:58]} 7. Bf4 {[%clk 0:02:52]}  Nc6 {[%clk 0:02:56]} 8. Nxc6 {[%clk 0:02:52]}  bxc6 {[%clk 0:02:54]} 9. Bc4 {[%clk 0:02:49]}  Ne7 {[%clk 0:02:51]} 10. O-O {[%clk 0:02:44]}  Nd5 {[%clk 0:02:51]} 11. Bg3 {[%clk 0:02:44]}  Rb8 {[%clk 0:02:49]} 12. Bb3 {[%clk 0:02:44]}  Be7 {[%clk 0:02:47]} 13. Ne4 {[%clk 0:02:44]}  O-O {[%clk 0:02:46]} 14. c4 {[%clk 0:02:45]}  Nc7 {[%clk 0:02:40]} 15. Qh5 {[%clk 0:02:41]}  g6 {[%clk 0:02:31]} 16. Qh6 {[%clk 0:02:41]}  Ne8 {[%clk 0:02:31]} 17. c5 {[%clk 0:02:39]}  Rb4 {[%clk 0:02:26]} 18. Rfe1 {[%clk 0:02:39]}  f5 {[%clk 0:02:19]} 19. exf6 {[%clk 0:02:34]}  Bxf6 {[%clk 0:02:04]} 20. Rad1 {[%clk 0:02:34]}  Bg7 {[%clk 0:01:58]} 21. Qh3 {[%clk 0:01:57]}  Qa5 {[%clk 0:01:32]} 22. Bd6 {[%clk 0:01:14]}  Nxd6 {[%clk 0:01:26]} 23. Nxd6 {[%clk 0:01:14]}  Qxc5 {[%clk 0:00:58]} 24. Nxc8 {[%clk 0:01:12]}  Qxf2+ {[%clk 0:00:57]} 25. Kh1 {[%clk 0:01:12]}  Rxc8 {[%clk 0:00:38]} 26. Bxe6+ {[%clk 0:01:05]}  Kh8 {[%clk 0:00:35]} 27. Bxd7 {[%clk 0:01:05]}  Rf8 {[%clk 0:00:31]} 28. Bxc6 {[%clk 0:00:49]}  Rxb2 {[%clk 0:00:31]} 29. a4 {[%clk 0:00:41]}  Rd2 {[%clk 0:00:30]} 30. Bf3 {[%clk 0:00:36]}  Rxd1 {[%clk 0:00:29]} 31. Rxd1 {[%clk 0:00:37]}  Qc2 {[%clk 0:00:24]} 32. Qd7 {[%clk 0:00:35]}  a5 {[%clk 0:00:16]} 33. h3 {[%clk 0:00:35]}  Qc3 {[%clk 0:00:15]} 34. Qb7 {[%clk 0:00:33]}  Qb4 {[%clk 0:00:15]} 35. Qxb4 {[%clk 0:00:28]}  axb4 {[%clk 0:00:15]} 36. a5 {[%clk 0:00:29]}  b3 {[%clk 0:00:14]} 37. a6 {[%clk 0:00:29]}  Rf7 {[%clk 0:00:14]} 38. Rd8+ {[%clk 0:00:26]}  Bf8 {[%clk 0:00:13]} 39. a7 {[%clk 0:00:25]}  Rxa7 {[%clk 0:00:13]} 40. Rxf8+ {[%clk 0:00:24]}  Kg7 {[%clk 0:00:13]} 41. Rb8 {[%clk 0:00:25]}  Ra1+ {[%clk 0:00:13]} 42. Kh2 {[%clk 0:00:25]}  Rb1 {[%clk 0:00:14]} 43. Bd5 {[%clk 0:00:22]}  b2 {[%clk 0:00:11]} 44. Ba2 {[%clk 0:00:23]} 1-0


[Site "https://www.chess.com"]

[Event "Titled Tuesday Blitz November 07 Late 2023"]
[White "Ward, Ieuan C"]
[Black "Arifarsky"]
[WhiteFideId "406627"]
[WhiteElo "2346"]
[BlackElo "2681"]
[Result "0-1"]
[Round "1"]
[TimeControl "180+1"]
[Date "2023.11.07"]
[WhiteClock "0:01:17"]
[BlackClock "0:02:18"]
[Board "94"]

1. d4 {[%clk 0:02:59]}  Nf6 {[%clk 0:02:58]} 2. c4 {[%clk 0:02:59]}  e6 {[%clk 0:02:58]} 3. Nf3 {[%clk 0:02:59]}  d5 {[%clk 0:02:50]} 4. Nc3 {[%clk 0:02:59]}  a6 {[%clk 0:02:49]} 5. Bg5 {[%clk 0:02:58]}  dxc4 {[%clk 0:02:46]} 6. e4 {[%clk 0:02:58]}  b5 {[%clk 0:02:46]} 7. e5 {[%clk 0:02:50]}  h6 {[%clk 0:02:46]} 8. Bh4 {[%clk 0:02:47]}  g5 {[%clk 0:02:46]} 9. Nxg5 {[%clk 0:02:45]}  hxg5 {[%clk 0:02:46]} 10. Bxg5 {[%clk 0:02:45]}  Nbd7 {[%clk 0:02:46]} 11. Qf3 {[%clk 0:02:40]}  Rb8 {[%clk 0:02:41]} 12. exf6 {[%clk 0:02:12]}  Bb7 {[%clk 0:02:37]} 13. Qg3 {[%clk 0:02:02]}  Bd6 {[%clk 0:02:28]} 14. Bf4 {[%clk 0:01:45]}  Nxf6 {[%clk 0:02:26]} 15. Bxd6 {[%clk 0:01:43]}  Qxd6 {[%clk 0:02:23]} 16. Qg7 {[%clk 0:01:41]}  Ke7 {[%clk 0:02:24]} 17. d5 {[%clk 0:01:17]}  Qe5+ {[%clk 0:02:18]} 0-1


[Site "https://www.chess.com"]

[Event "Titled Tuesday Blitz November 07 Late 2023"]
[White "Rojas Alarcon, Julian Antonio"]
[Black "Onslow, Alfie"]
[WhiteFideId "5107407"]
[BlackFideId "436976"]
[WhiteElo "2676"]
[BlackElo "2345"]
[Result "1-0"]
[Round "1"]
[TimeControl "180+1"]
[Date "2023.11.07"]
[WhiteClock "0:02:10"]
[BlackClock "0:00:01"]
[Board "95"]

1. d4 {[%clk 0:02:59]}  Nf6 {[%clk 0:02:58]} 2. c4 {[%clk 0:02:59]}  c5 {[%clk 0:02:58]} 3. d5 {[%clk 0:02:56]}  b5 {[%clk 0:02:58]} 4. f3 {[%clk 0:02:56]}  d6 {[%clk 0:02:51]} 5. e4 {[%clk 0:02:55]}  b4 {[%clk 0:02:28]} 6. Bd3 {[%clk 0:02:51]}  g6 {[%clk 0:02:27]} 7. b3 {[%clk 0:02:50]}  Bg7 {[%clk 0:02:27]} 8. Bb2 {[%clk 0:02:51]}  a5 {[%clk 0:02:28]} 9. a3 {[%clk 0:02:51]}  Ra6 {[%clk 0:02:15]} 10. Ne2 {[%clk 0:02:47]}  O-O {[%clk 0:02:10]} 11. O-O {[%clk 0:02:38]}  e6 {[%clk 0:02:09]} 12. Nd2 {[%clk 0:02:37]}  bxa3 {[%clk 0:02:01]} 13. Rxa3 {[%clk 0:02:35]}  Bd7 {[%clk 0:01:50]} 14. Qa1 {[%clk 0:02:35]}  e5 {[%clk 0:01:46]} 15. Bc3 {[%clk 0:02:34]}  a4 {[%clk 0:01:43]} 16. bxa4 {[%clk 0:02:33]}  Nh5 {[%clk 0:01:32]} 17. a5 {[%clk 0:02:32]}  f5 {[%clk 0:01:31]} 18. exf5 {[%clk 0:02:29]}  gxf5 {[%clk 0:01:14]} 19. Bc2 {[%clk 0:02:24]}  Qg5 {[%clk 0:01:08]} 20. f4 {[%clk 0:02:22]}  Qg4 {[%clk 0:01:02]} 21. Bd1 {[%clk 0:02:16]}  exf4 {[%clk 0:00:13]} 22. Nxf4 {[%clk 0:02:15]}  Qg5 {[%clk 0:00:08]} 23. Nxh5 {[%clk 0:02:13]}  Qe3+ {[%clk 0:00:06]} 24. Kh1 {[%clk 0:02:12]}  Bxc3 {[%clk 0:00:05]} 25. Qxc3 {[%clk 0:02:13]}  Qxc3 {[%clk 0:00:04]} 26. Rxc3 {[%clk 0:02:13]}  Rxa5 {[%clk 0:00:03]} 27. Rg3+ {[%clk 0:02:12]}  Kf7 {[%clk 0:00:04]} 28. Rg7+ {[%clk 0:02:11]}  Ke8 {[%clk 0:00:01]} 29. Nf3 {[%clk 0:02:10]} 1-0


[Site "https://www.chess.com"]

[Event "Titled Tuesday Blitz November 07 Late 2023"]
[White "Ardila, Oscar Humberto"]
[Black "Giroyan, Gary"]
[WhiteFideId "4404742"]
[BlackFideId "680281"]
[WhiteElo "2338"]
[BlackElo "2664"]
[Result "0-1"]
[Round "1"]
[TimeControl "180+1"]
[Date "2023.11.07"]
[WhiteClock "0:00:10"]
[BlackClock "0:01:01"]
[Board "98"]

1. d4 {[%clk 0:02:59]}  Nf6 {[%clk 0:02:59]} 2. c4 {[%clk 0:02:59]}  e6 {[%clk 0:03:00]} 3. Nc3 {[%clk 0:02:59]}  Bb4 {[%clk 0:03:00]} 4. Bd2 {[%clk 0:02:59]}  d5 {[%clk 0:03:00]} 5. Nf3 {[%clk 0:02:58]}  O-O {[%clk 0:03:00]} 6. e3 {[%clk 0:02:58]}  b6 {[%clk 0:03:00]} 7. cxd5 {[%clk 0:02:57]}  exd5 {[%clk 0:03:01]} 8. Bd3 {[%clk 0:02:57]}  Re8 {[%clk 0:02:52]} 9. O-O {[%clk 0:02:57]}  Bd6 {[%clk 0:02:48]} 10. Qc2 {[%clk 0:02:55]}  Bb7 {[%clk 0:02:34]} 11. Nb5 {[%clk 0:02:53]}  c5 {[%clk 0:02:34]} 12. Nxd6 {[%clk 0:02:50]}  Qxd6 {[%clk 0:02:34]} 13. Bb5 {[%clk 0:02:47]}  Nbd7 {[%clk 0:02:31]} 14. Qf5 {[%clk 0:02:46]}  Re7 {[%clk 0:02:22]} 15. Bd3 {[%clk 0:02:43]}  Ne4 {[%clk 0:02:15]} 16. Be1 {[%clk 0:02:22]}  Rae8 {[%clk 0:02:05]} 17. Rd1 {[%clk 0:02:11]}  c4 {[%clk 0:02:01]} 18. Bb1 {[%clk 0:02:06]}  a5 {[%clk 0:01:54]} 19. Nd2 {[%clk 0:02:05]}  Ndf6 {[%clk 0:01:53]} 20. Nxe4 {[%clk 0:02:04]}  Nxe4 {[%clk 0:01:52]} 21. f3 {[%clk 0:01:58]}  Bc8 {[%clk 0:01:37]} 22. Qf4 {[%clk 0:01:38]}  Qxf4 {[%clk 0:01:34]} 23. exf4 {[%clk 0:01:39]}  Nd6 {[%clk 0:01:34]} 24. Bf2 {[%clk 0:01:32]}  Bf5 {[%clk 0:01:30]} 25. Rfe1 {[%clk 0:01:17]}  Bxb1 {[%clk 0:01:26]} 26. Rxb1 {[%clk 0:01:17]}  b5 {[%clk 0:01:17]} 27. Kf1 {[%clk 0:01:15]}  b4 {[%clk 0:01:16]} 28. Rxe7 {[%clk 0:01:14]}  Rxe7 {[%clk 0:01:17]} 29. Re1 {[%clk 0:01:14]}  Kf8 {[%clk 0:01:17]} 30. Rxe7 {[%clk 0:01:11]}  Kxe7 {[%clk 0:01:18]} 31. Ke2 {[%clk 0:01:11]}  Nb5 {[%clk 0:01:17]} 32. Kd2 {[%clk 0:01:10]}  a4 {[%clk 0:01:10]} 33. g4 {[%clk 0:00:58]}  g6 {[%clk 0:01:07]} 34. Bh4+ {[%clk 0:00:53]}  Kd7 {[%clk 0:01:06]} 35. Bf2 {[%clk 0:00:30]}  a3 {[%clk 0:01:06]} 36. bxa3 {[%clk 0:00:28]}  Nxa3 {[%clk 0:01:06]} 37. Kc1 {[%clk 0:00:21]}  Kc6 {[%clk 0:01:04]} 38. h4 {[%clk 0:00:20]}  f5 {[%clk 0:01:01]} 39. Be1 {[%clk 0:00:17]}  Kb5 {[%clk 0:01:01]} 40. Kb2 {[%clk 0:00:17]}  Ka4 {[%clk 0:01:00]} 41. Bd2 {[%clk 0:00:16]}  Nb5 {[%clk 0:01:00]} 42. Be3 {[%clk 0:00:15]}  Nc3 {[%clk 0:01:01]} 43. a3 {[%clk 0:00:12]}  Nd1+ {[%clk 0:00:59]} 44. Kc1 {[%clk 0:00:11]}  Nxe3 {[%clk 0:01:00]} 45. axb4 {[%clk 0:00:11]}  Kxb4 {[%clk 0:01:00]} 46. Kd2 {[%clk 0:00:10]}  Ng2 {[%clk 0:00:59]} 47. Ke2 {[%clk 0:00:10]}  Nxf4+ {[%clk 0:00:59]} 48. Ke3 {[%clk 0:00:11]}  Ne6 {[%clk 0:01:00]} 49. gxf5 {[%clk 0:00:11]}  gxf5 {[%clk 0:01:01]} 50. f4 {[%clk 0:00:10]}  Kb3 {[%clk 0:01:01]} 0-1


[Site "https://www.chess.com"]

[Event "Titled Tuesday Blitz November 07 Late 2023"]
[White "Gubajdullin, Alexei"]
[Black "Davidson, Kevin"]
[WhiteFideId "4141202"]
[BlackFideId "2056810"]
[WhiteElo "2662"]
[BlackElo "2337"]
[Result "1-0"]
[Round "1"]
[TimeControl "180+1"]
[Date "2023.11.07"]
[WhiteClock "0:00:39"]
[BlackClock "0:00:00"]
[Board "99"]

1. d4 {[%clk 0:03:00]}  Nf6 {[%clk 0:02:58]} 2. Nf3 {[%clk 0:03:00]}  g6 {[%clk 0:02:59]} 3. Bf4 {[%clk 0:03:01]}  Bg7 {[%clk 0:02:59]} 4. e3 {[%clk 0:03:01]}  d6 {[%clk 0:02:59]} 5. Be2 {[%clk 0:03:01]}  O-O {[%clk 0:02:59]} 6. O-O {[%clk 0:03:01]}  Nfd7 {[%clk 0:02:57]} 7. h3 {[%clk 0:03:00]}  h6 {[%clk 0:02:55]} 8. a4 {[%clk 0:02:59]}  e5 {[%clk 0:02:54]} 9. Bh2 {[%clk 0:02:58]}  Nc6 {[%clk 0:02:54]} 10. a5 {[%clk 0:02:56]}  a6 {[%clk 0:02:54]} 11. c3 {[%clk 0:02:54]}  f5 {[%clk 0:02:53]} 12. Nbd2 {[%clk 0:02:54]}  g5 {[%clk 0:02:54]} 13. dxe5 {[%clk 0:02:51]}  dxe5 {[%clk 0:02:53]} 14. Nc4 {[%clk 0:02:51]}  f4 {[%clk 0:02:53]} 15. exf4 {[%clk 0:02:43]}  exf4 {[%clk 0:02:52]} 16. Qd5+ {[%clk 0:02:36]}  Kh8 {[%clk 0:02:52]} 17. Rad1 {[%clk 0:02:34]}  Qe7 {[%clk 0:02:20]} 18. Rfe1 {[%clk 0:02:19]}  Qc5 {[%clk 0:01:53]} 19. Qxc5 {[%clk 0:02:01]}  Nxc5 {[%clk 0:01:54]} 20. Rd5 {[%clk 0:02:00]}  Rf5 {[%clk 0:01:39]} 21. Red1 {[%clk 0:01:51]}  Rxd5 {[%clk 0:01:17]} 22. Rxd5 {[%clk 0:01:50]}  Nb3 {[%clk 0:01:08]} 23. h4 {[%clk 0:01:36]}  Be6 {[%clk 0:01:05]} 24. Rd1 {[%clk 0:01:35]}  g4 {[%clk 0:00:44]} 25. Ne1 {[%clk 0:01:33]}  Rf8 {[%clk 0:00:43]} 26. Nd2 {[%clk 0:01:09]}  Nxd2 {[%clk 0:00:38]} 27. Rxd2 {[%clk 0:01:09]}  Nxa5 {[%clk 0:00:36]} 28. Nd3 {[%clk 0:01:03]}  Nc4 {[%clk 0:00:31]} 29. Rd1 {[%clk 0:01:02]}  f3 {[%clk 0:00:28]} 30. Bf1 {[%clk 0:01:00]}  c6 {[%clk 0:00:20]} 31. Nc5 {[%clk 0:00:59]}  Bc8 {[%clk 0:00:19]} 32. Bxc4 {[%clk 0:00:58]}  b5 {[%clk 0:00:14]} 33. Ba2 {[%clk 0:00:57]}  a5 {[%clk 0:00:11]} 34. Ne6 {[%clk 0:00:46]}  Bxe6 {[%clk 0:00:09]} 35. Bxe6 {[%clk 0:00:46]}  h5 {[%clk 0:00:09]} 36. gxf3 {[%clk 0:00:40]}  gxf3 {[%clk 0:00:03]} 37. Rd6 {[%clk 0:00:39]}  b4 {[%clk 0:00:03]} 38. cxb4 {[%clk 0:00:39]}  axb4 {[%clk 0:00:04]} 39. b3 {[%clk 0:00:39]}  Ra8 {[%clk 0:00:02]} 40. Bg3 {[%clk 0:00:39]}  Ra1+ {[%clk 0:00:00]} 41. Kh2 {[%clk 0:00:39]} 1-0


[Site "https://www.chess.com"]

[Event "Titled Tuesday Blitz November 07 Late 2023"]
[White "Bueno, Alfeu Junior Varela"]
[Black "Lamaze, Simon"]
[WhiteFideId "2108879"]
[BlackFideId "36069264"]
[WhiteElo "2336"]
[BlackElo "2659"]
[Result "0-1"]
[Round "1"]
[TimeControl "180+1"]
[Date "2023.11.07"]
[WhiteClock "0:00:32"]
[BlackClock "0:01:42"]
[Board "100"]

1. e4 {[%clk 0:03:00]}  c6 {[%clk 0:02:59]} 2. d4 {[%clk 0:03:00]}  d5 {[%clk 0:03:00]} 3. f3 {[%clk 0:03:01]}  e6 {[%clk 0:02:59]} 4. Nc3 {[%clk 0:03:00]}  Nd7 {[%clk 0:03:00]} 5. Be3 {[%clk 0:02:58]}  Bb4 {[%clk 0:02:51]} 6. Bd3 {[%clk 0:02:57]}  Ne7 {[%clk 0:02:51]} 7. Ne2 {[%clk 0:02:56]}  O-O {[%clk 0:02:49]} 8. Qd2 {[%clk 0:02:49]}  e5 {[%clk 0:02:42]} 9. a3 {[%clk 0:02:47]}  exd4 {[%clk 0:02:41]} 10. axb4 {[%clk 0:02:25]}  dxe3 {[%clk 0:02:41]} 11. Qxe3 {[%clk 0:02:26]}  dxe4 {[%clk 0:02:38]} 12. fxe4 {[%clk 0:02:08]}  Ne5 {[%clk 0:02:35]} 13. O-O-O {[%clk 0:02:04]}  Qc7 {[%clk 0:02:32]} 14. h3 {[%clk 0:01:58]}  b5 {[%clk 0:02:30]} 15. Kb1 {[%clk 0:01:47]}  a5 {[%clk 0:02:30]} 16. bxa5 {[%clk 0:01:17]}  Qxa5 {[%clk 0:02:31]} 17. Kc1 {[%clk 0:01:17]}  b4 {[%clk 0:02:27]} 18. Nb1 {[%clk 0:01:17]}  Be6 {[%clk 0:02:26]} 19. Nd4 {[%clk 0:01:12]}  Ba2 {[%clk 0:02:20]} 20. Nd2 {[%clk 0:01:11]}  Qa7 {[%clk 0:01:59]} 21. Nf5 {[%clk 0:01:02]}  Qxe3 {[%clk 0:01:52]} 22. Nxe3 {[%clk 0:01:02]}  Be6 {[%clk 0:01:51]} 23. Nb3 {[%clk 0:00:32]}  Bxb3 {[%clk 0:01:42]} 0-1


[Site "https://www.chess.com"]